[Event "4th Sabbiadoro-Master 2018"]
[Site "Lignano Sabbiadoro"]
[Date "2018.08.02"]
[Round "6.7"]
[White "Micottis, Dorian"]
[Black "Favilli, Edoardo"]
[Result "1/2-1/2"]
[ECO "C12"]
[WhiteElo "2279"]
[BlackElo "2116"]
[Annotator "NA"]
[PlyCount "95"]
[EventDate "2018.07.29"]
[EventType "swiss"]
[EventCountry "ITA"]
[SourceTitle "playchess.com"]
[Source "ChessBase"]
[SourceQuality "1"]
[TimeControl "5400+30"]

1. e4 {[%emt 0:00:30]} e6 {[%emt 0:08:30]} 2. d4 {[%emt 0:00:00]} d5 {[%emt 0:00:00]} 3. Nc3 {[%emt 0:00:00]} Nf6 {[%emt 0:00:00]} 4. Bg5 {[%emt 0:00:00]} Bb4 {[%emt 0:00:30]} 5. e5 {[%emt 0:00:00]} h6 {[%emt 0:00:30]} 6. Be3 {[%emt 0:00:00]} Ne4 {[%emt 0:00:00]} 7. Qg4 {[%emt 0:00:00]} g6 {[%emt 0:00:00]} 8. a3 {[%emt 0:00:00]} Bxc3+ {[%emt 0:00:30]} 9. bxc3 {[%emt 0:00:00]} c5 {[%emt 0:00:30]} 10. Bd3 {[%emt 0:01:30]} h5 $11 {[%emt 0:00:30]} 11. Qf3 {[%emt 0:09:30]} Nxc3 {[%emt 0:01:30]} 12. dxc5 {[%emt 0:03:30]} Nc6 {[%emt 0:00:00]} 13. Qf4 {[%emt 0:03:30]} d4 {[%emt 0:09:00]} 14. Bd2 {[%emt 0:00:30]} Na4 {[%emt 0:00:30]} 15. Nf3 {[%emt 0:06:30]} Nxc5 {[%emt 0:03:30]} 16. O-O {[%emt 0:01:30]} Nxd3 {[%emt 0:25:30]} 17. cxd3 {[%emt 0:00:30]} f6 {[%emt 0:07:30]} 18. Qg3 {[%emt 0:38:30]} g5 {[%emt 0:20:30]} 19. exf6 {[%emt 0:00:30]} g4 {[%emt 0:00:30]} 20. Ng5 {[%emt 0:00:30]} Qxf6 {[%emt 0:00:30]} 21. Ne4 {[%emt 0:00:30]} Qg7 {[%emt 0:00:30]} 22. Nd6+ {[%emt 0:00:30]} Kd7 {[%emt 0:00:30]} 23. Nc4 {[%emt 0:01:30]} e5 {[%emt 0:04:17]} 24. Rae1 {[%emt 0:02:30]} Re8 {[%emt 0:01:04]} 25. f4 {[%emt 0:00:30]} Kc7 {[%emt 0:04:23]} 26. Nxe5 {[%emt 0:04:30]} Bf5 {[%emt 0:01:30]} 27. Rc1 {[%emt 0:05:30]} Rac8 {[%emt 0:00:41]} 28. Rc5 {[%emt 0:00:30]} Qf8 {[%emt 0:02:39]} 29. Bb4 {[%emt 0:06:58]} Qf6 {[%emt 0:00:17]} 30. Rfc1 {[%emt 0:00:04]} Kb8 {[%emt 0:00:37]} 31. Nxc6+ {[%emt 0:02:06]} Rxc6 {[%emt 0:00:06]} 32. Rxc6 {[%emt 0:00:23]} bxc6 {[%emt 0:00:06]} 33. Re1 {[%emt 0:04:05]} Re6 {[%emt 0:07:05]} 34. Bc5 {[%emt 0:02:03]} h4 {[%emt 0:01:38]} 35. Qf2 {[%emt 0:02:35]} Bxd3 {[%emt 0:00:09]} 36. Rxe6 {[%emt 0:02:33]} Qxe6 {[%emt 0:00:01]} 37. Bxd4 {[%emt 0:00:00]} Qb3 {[%emt 0:01:29]} 38. Be5+ {[%emt 0:04:11]} Kb7 {[%emt 0:00:19]} 39. Qxh4 {[%emt 0:00:21]} Qd1+ {[%emt 0:01:33]} 40. Kf2 {[%emt 0:00:01]} Qe2+ {[%emt 0:00:00]} 41. Kg3 {[%emt 0:00:08]} Bf5 {[%emt 0:00:33]} 42. Qe7+ {[%emt 0:00:25]} Ka6 {[%emt 0:00:01]} 43. Qc5 {[%emt 0:01:09]} Be4 {[%emt 0:00:57]} 44. Qf2 {[%emt 0:00:56]} Qd3+ {[%emt 0:00:06]} 45. Kxg4 {[%emt 0:00:20]} Qd1+ {[%emt 0:00:40]} 46. Kg3 {[%emt 0:00:37]} Qd3+ {[%emt 0:00:11]} 47. Kg4 {[%emt 0:00:12]} Qd1+ {[%emt 0:00:17]} 48. Kg3 {[%emt 0:00:30]} 1/2-1/2

[Event "4th Sabbiadoro-Master 2018"]
[Site "Lignano Sabbiadoro"]
[Date "2018.08.02"]
[Round "6.8"]
[White "Sgnaolin, Davide"]
[Black "Migliorini, Matteo"]
[Result "0-1"]
[ECO "A06"]
[WhiteElo "2267"]
[BlackElo "2130"]
[Annotator "NA"]
[PlyCount "96"]
[EventDate "2018.07.29"]
[EventType "swiss"]
[EventCountry "ITA"]
[SourceTitle "playchess.com"]
[Source "ChessBase"]
[SourceQuality "1"]
[TimeControl "5400+30"]

1. Nf3 {[%emt 0:00:30]} c5 {[%emt 0:00:30]} 2. b3 {[%emt 0:00:30]} d5 {[%emt 0:05:30]} 3. Bb2 {[%emt 0:00:30]} Nc6 {[%emt 0:00:30]} 4. e3 {[%emt 0:00:00]} Nf6 {[%emt 0:00:30]} 5. Bb5 $11 {[%emt 0:05:00] LiveBook: 185 Games} Qb6 {[%emt 0:08:30]} 6. a4 {[%emt 0:15:30]} Bg4 {[%emt 0:04:30]} 7. h3 {[%emt 0:02:30]} Bh5 {[%emt 0:04:30]} 8. g4 {[%emt 0:05:30]} Bg6 {[%emt 0:00:30]} 9. Ne5 {[%emt 0:01:30]} e6 {[%emt 0:00:30]} 10. d3 {[%emt 0:04:30]} Bd6 {[%emt 0:04:30]} 11. Bxc6+ {[%emt 0:06:30]} bxc6 {[%emt 0:00:30]} 12. Nd2 {[%emt 0:00:00]} Rd8 {[%emt 0:09:30]} 13. Qe2 {[%emt 0:04:00]} c4 {[%emt 0:20:30]} 14. dxc4 {[%emt 0:34:17]} Bxc2 {[%emt 0:00:30]} 15. Rc1 {[%emt 0:00:44]} Bxb3 {[%emt 0:00:30]} 16. Nxb3 {[%emt 0:04:11]} Bxe5 {[%emt 0:02:30]} 17. Bxe5 {[%emt 0:00:59]} Qxb3 {[%emt 0:00:30]} 18. O-O {[%emt 0:03:13]} O-O {[%emt 0:01:30]} 19. Bxf6 {[%emt 0:01:17]} gxf6 {[%emt 0:00:30]} 20. Qf3 {[%emt 0:01:07]} Kg7 {[%emt 0:02:30]} 21. cxd5 {[%emt 0:00:44]} cxd5 {[%emt 0:01:30]} 22. Qf4 {[%emt 0:00:15]} d4 {[%emt 0:08:30]} 23. exd4 {[%emt 0:03:54]} Qxa4 {[%emt 0:02:30]} 24. Ra1 {[%emt 0:01:06]} Qxd4 {[%emt 0:00:30]} 25. Qxd4 {[%emt 0:00:08]} Rxd4 {[%emt 0:00:00]} 26. Rxa7 {[%emt 0:00:02]} Rfd8 {[%emt 0:00:00]} 27. Rc1 {[%emt 0:00:45]} Rd1+ {[%emt 0:01:30]} 28. Rxd1 {[%emt 0:00:01]} Rxd1+ {[%emt 0:00:00]} 29. Kg2 {[%emt 0:00:00]} Rd5 {[%emt 0:00:00]} 30. Kg3 {[%emt 0:00:52]} f5 {[%emt 0:00:30]} 31. Ra8 {[%emt 0:01:46]} Rd3+ {[%emt 0:02:25]} 32. Kg2 {[%emt 0:02:17]} f4 {[%emt 0:00:58]} 33. Ra5 {[%emt 0:00:47]} f6 {[%emt 0:00:53]} 34. Ra4 {[%emt 0:01:13]} e5 {[%emt 0:00:08]} 35. Ra7+ {[%emt 0:00:17]} Kg6 {[%emt 0:00:12]} 36. Ra8 {[%emt 0:00:18]} h5 {[%emt 0:06:11]} 37. gxh5+ {[%emt 0:01:02]} Kxh5 {[%emt 0:00:06]} 38. Rg8 {[%emt 0:00:14]} f5 {[%emt 0:04:57]} 39. Rh8+ {[%emt 0:00:48]} Kg6 {[%emt 0:00:10]} 40. Rg8+ {[%emt 0:00:06]} Kf7 {[%emt 0:00:36]} 41. Ra8 {[%emt 0:00:26]} e4 {[%emt 0:00:45]} 42. Ra6 {[%emt 0:00:56]} Rd8 {[%emt 0:00:33]} 43. Ra7+ {[%emt 0:00:41]} Kf6 {[%emt 0:00:29]} 44. Ra6+ {[%emt 0:00:09]} Kg5 {[%emt 0:00:35]} 45. Ra5 {[%emt 0:00:48]} Rg8 {[%emt 0:00:35]} 46. Kf1 {[%emt 0:00:31]} f3 {[%emt 0:00:26]} 47. Ra7 {[%emt 0:00:30]} Rh8 {[%emt 0:00:46]} 48. Rg7+ {[%emt 0:00:22]} Kf4 {[%emt 0:00:59]} 0-1

[Event "4th Sabbiadoro-Master 2018"]
[Site "Lignano Sabbiadoro"]
[Date "2018.08.02"]
[Round "6.9"]
[White "Ventura, Salvatore"]
[Black "Barberi, Alessandro"]
[Result "1-0"]
[ECO "B06"]
[WhiteElo "2185"]
[BlackElo "2044"]
[Annotator "NA"]
[PlyCount "35"]
[EventDate "2018.07.29"]
[EventType "swiss"]
[EventCountry "ITA"]
[SourceTitle "playchess.com"]
[Source "ChessBase"]
[SourceQuality "1"]
[TimeControl "5400+30"]

1. d4 {[%emt 0:00:30]} g6 {[%emt 0:00:30]} 2. e4 {[%emt 0:00:30]} Bg7 {[%emt 0:00:00]} 3. Nc3 {[%emt 0:00:00]} d6 {[%emt 0:00:00]} 4. f4 {[%emt 0:00:00]} a6 {[%emt 0:00:30]} 5. Nf3 {[%emt 0:00:30]} Nd7 {[%emt 0:00:30]} 6. Bd3 {[%emt 0:03:30]} b5 {[%emt 0:00:30]} 7. e5 {[%emt 0:03:30]} Bb7 {[%emt 0:00:30]} 8. Qe2 {[%emt 0:01:30]} c5 {[%emt 0:04:30]} 9. Ng5 {[%emt 0:00:30]} Nf8 {[%emt 0:02:30]} 10. Nxb5 {[%emt 0:05:30]} cxd4 {[%emt 0:00:30]} 11. Nxd6+ {[%emt 0:07:30]} exd6 {[%emt 0:00:30]} 12. exd6+ {[%emt 0:00:30]} Ne6 {[%emt 0:00:30]} 13. f5 {[%emt 0:03:30]} gxf5 {[%emt 0:00:00]} 14. Nxe6 {[%emt 0:05:30]} fxe6 {[%emt 0:02:00]} 15. Qxe6+ {[%emt 0:00:30]} Kf8 {[%emt 0:00:30]} 16. O-O {[%emt 0:02:30]} Nf6 {[%emt 0:00:30]} 17. Bd2 {[%emt 0:14:30]} Bc8 {[%emt 0:04:30]} 18. d7 {[%emt 0:02:30]} 1-0

[Event "4th Sabbiadoro-Master 2018"]
[Site "Lignano Sabbiadoro"]
[Date "2018.08.02"]
[Round "6.10"]
[White "Grigorian, Roudolph"]
[Black "Grochowalski, Pawel"]
[Result "1/2-1/2"]
[ECO "D02"]
[WhiteElo "2154"]
[BlackElo "2049"]
[Annotator "NA"]
[PlyCount "32"]
[EventDate "2018.07.29"]
[EventType "swiss"]
[EventCountry "ITA"]
[SourceTitle "playchess.com"]
[Source "ChessBase"]
[SourceQuality "1"]
[TimeControl "5400+30"]

1. d4 {[%emt 0:10:30]} Nf6 {[%emt 0:00:30]} 2. Bf4 {[%emt 0:00:30]} d5 {[%emt 0:02:30]} 3. Nf3 {[%emt 0:00:30]} e6 {[%emt 0:04:30]} 4. e3 {[%emt 0:00:00]} Bd6 {[%emt 0:00:30]} 5. Bg3 {[%emt 0:00:00]} Qe7 {[%emt 0:04:30]} 6. Nbd2 {[%emt 0:02:30]} c5 {[%emt 0:05:30]} 7. c3 {[%emt 0:00:30]} Nc6 {[%emt 0:00:30]} 8. Ne5 {[%emt 0:01:30]} Nd7 {[%emt 0:04:30]} 9. Nxc6 {[%emt 0:05:30]} bxc6 {[%emt 0:00:30]} 10. Qa4 {[%emt 0:03:30]} Bb7 {[%emt 0:03:30]} 11. Nb3 {[%emt 0:03:30]} Bxg3 {[%emt 0:10:30]} 12. hxg3 {[%emt 0:00:30]} c4 {[%emt 0:05:30]} 13. Na5 {[%emt 0:07:30]} Rb8 {[%emt 0:10:30]} 14. Qc2 {[%emt 0:23:30]} Qa3 {[%emt 0:03:30]} 15. b3 {[%emt 0:00:30]} g6 {[%emt 0:08:30]} 16. b4 {[%emt 0:18:09]} Ba8 {[%emt 0:03:30]} 1/2-1/2

[Event "4th Sabbiadoro-Master 2018"]
[Site "Lignano Sabbiadoro"]
[Date "2018.08.03"]
[Round "7.3"]
[White "Damia, Angelo"]
[Black "Ristic, Nenad"]
[Result "1/2-1/2"]
[ECO "B38"]
[WhiteElo "2313"]
[BlackElo "2356"]
[Annotator "NA"]
[PlyCount "99"]
[EventDate "2018.07.29"]
[EventType "swiss"]
[EventCountry "ITA"]
[SourceTitle "playchess.com"]
[Source "ChessBase"]
[SourceQuality "1"]
[TimeControl "5400+30"]

1. e4 {[%emt 0:04:30]} c5 {[%emt 0:00:30]} 2. Nf3 {[%emt 0:00:30]} Nc6 {[%emt 0:00:00]} 3. d4 {[%emt 0:00:30]} cxd4 {[%emt 0:00:00]} 4. Nxd4 {[%emt 0:00:30]} g6 {[%emt 0:00:30]} 5. c4 {[%emt 0:01:30]} Bg7 {[%emt 0:00:00]} 6. Be3 {[%emt 0:01:30]} Nf6 {[%emt 0:00:00]} 7. Nc3 {[%emt 0:00:30]} O-O {[%emt 0:00:30]} 8. Be2 {[%emt 0:00:30]} d6 {[%emt 0:00:30]} 9. O-O {[%emt 0:00:30]} Bd7 {[%emt 0:00:00]} 10. Rc1 {[%emt 0:02:30]} Nxd4 {[%emt 0:02:00]} 11. Bxd4 {[%emt 0:00:00]} Bc6 {[%emt 0:00:30]} 12. Qd3 {[%emt 0:01:00]} Nd7 {[%emt 0:00:30]} 13. Bxg7 {[%emt 0:00:30]} Kxg7 {[%emt 0:00:30]} 14. b3 {[%emt 0:00:30]} Nc5 {[%emt 0:02:30]} 15. Qe3 {[%emt 0:00:30]} e5 {[%emt 0:01:30]} 16. f4 {[%emt 0:00:30]} f6 {[%emt 0:10:30]} 17. f5 {[%emt 0:05:30]} a5 {[%emt 0:01:30]} 18. Rcd1 {[%emt 0:00:30]} Qc7 {[%emt 0:03:30]} 19. Rd2 {[%emt 0:07:30]} Rad8 {[%emt 0:00:30]} 20. h4 {[%emt 0:14:30]} b6 {[%emt 0:01:30]} 21. g4 {[%emt 0:00:30]} Qb7 {[%emt 0:03:30]} 22. Nd5 {[%emt 0:00:30]} gxf5 {[%emt 0:06:30]} 23. Rxf5 {[%emt 0:02:30]} Ne6 {[%emt 0:01:30]} 24. Nxf6 {[%emt 0:05:30]} Rxf6 {[%emt 0:02:30]} 25. Rxf6 {[%emt 0:00:30]} Kxf6 {[%emt 0:00:00]} 26. Qh6+ {[%emt 0:00:30]} Ke7 {[%emt 0:01:00]} 27. g5 {[%emt 0:00:00]} Rf8 {[%emt 0:03:30]} 28. Bg4 {[%emt 0:01:00]} Bd7 {[%emt 0:00:30]} 29. Qxh7+ {[%emt 0:00:30]} Rf7 {[%emt 0:00:30]} 30. Qg6 {[%emt 0:00:30]} Nd4 {[%emt 0:01:30]} 31. Rf2 {[%emt 0:01:30]} Be8 {[%emt 0:07:30]} 32. Rxf7+ {[%emt 0:02:30]} Bxf7 {[%emt 0:00:30]} 33. Qf6+ {[%emt 0:00:00]} Ke8 {[%emt 0:00:30]} 34. Qxd6 {[%emt 0:05:00]} Qe7 {[%emt 0:05:30]} 35. Qb8+ {[%emt 0:00:30]} Qd8 {[%emt 0:00:00]} 36. Qxe5+ {[%emt 0:00:00]} Ne6 {[%emt 0:00:00]} 37. Bxe6 {[%emt 0:01:00]} Qd1+ {[%emt 0:00:30]} 38. Kf2 {[%emt 0:02:30]} Qd2+ {[%emt 0:00:00]} 39. Kf3 {[%emt 0:01:30]} Qd1+ {[%emt 0:03:00]} 40. Kf4 {[%emt 0:01:30]} Qf1+ {[%emt 0:03:30]} 41. Kg4 {[%emt 0:01:30]} Qe2+ {[%emt 0:04:30]} 42. Kf5 {[%emt 0:00:30]} Qf3+ {[%emt 0:01:30]} 43. Qf4 {[%emt 0:00:00]} Qh3+ {[%emt 0:01:30]} 44. Ke5 {[%emt 0:00:00]} Qxe6+ {[%emt 0:00:30]} 45. Kd4 {[%emt 0:00:00]} Qd7+ {[%emt 0:02:30]} 46. Kc3 {[%emt 0:00:00]} Qd1 {[%emt 0:01:30]} 47. Qe5+ {[%emt 0:05:30]} Kf8 {[%emt 0:00:30]} 48. Qh8+ {[%emt 0:01:30]} Ke7 {[%emt 0:00:00]} 49. Qf6+ {[%emt 0:00:30]} Ke8 {[%emt 0:00:00]} 50. Qe5+ {[%emt 0:08:30]} 1/2-1/2

[Event "4th Sabbiadoro-Master 2018"]
[Site "Lignano Sabbiadoro"]
[Date "2018.08.03"]
[Round "7.4"]
[White "Zuttioni, Federico"]
[Black "Simonetto, Andrea"]
[Result "1-0"]
[ECO "B12"]
[WhiteElo "2141"]
[BlackElo "2173"]
[Annotator "NA"]
[PlyCount "69"]
[EventDate "2018.07.29"]
[EventType "swiss"]
[EventCountry "ITA"]
[SourceTitle "playchess.com"]
[Source "ChessBase"]
[SourceQuality "1"]
[TimeControl "5400+30"]

1. e4 {[%emt 0:03:30]} c6 {[%emt 0:00:30]} 2. d4 {[%emt 0:00:00]} d5 {[%emt 0:00:00]} 3. e5 {[%emt 0:00:00]} c5 {[%emt 0:00:00]} 4. dxc5 {[%emt 0:00:30]} e6 {[%emt 0:00:00]} 5. Nf3 {[%emt 0:04:30]} Bxc5 {[%emt 0:00:00]} 6. a3 {[%emt 0:02:30]} Ne7 {[%emt 0:00:30]} 7. b4 {[%emt 0:00:30]} Bb6 {[%emt 0:00:30]} 8. Bd3 {[%emt 0:02:30]} Ng6 {[%emt 0:00:30]} 9. O-O {[%emt 0:02:30]} O-O {[%emt 0:00:30]} 10. Bb2 {[%emt 0:17:30]} Nc6 {[%emt 0:01:30]} 11. Nbd2 {[%emt 0:06:30]} a5 {[%emt 0:04:30]} 12. b5 {[%emt 0:04:30]} Nce7 {[%emt 0:00:30]} 13. g3 {[%emt 0:07:30]} f6 {[%emt 0:03:30]} 14. Qe2 {[%emt 0:07:30]} Bd7 {[%emt 0:08:30]} 15. a4 {[%emt 0:04:30]} Qe8 {[%emt 0:03:30]} 16. Rad1 {[%emt 0:02:30]} Qf7 {[%emt 0:08:30]} 17. Nb3 {[%emt 0:09:30]} Rac8 {[%emt 0:09:30]} 18. Rd2 {[%emt 0:03:11]} fxe5 {[%emt 0:08:30]} 19. Nxe5 {[%emt 0:01:20]} Nxe5 {[%emt 0:00:00]} 20. Bxe5 {[%emt 0:00:39]} Ng6 {[%emt 0:00:00]} 21. Qh5 {[%emt 0:03:09]} Be8 {[%emt 0:06:30]} 22. Re2 {[%emt 0:05:07]} h6 {[%emt 0:18:30]} 23. Bd6 {[%emt 0:04:01]} Qf3 {[%emt 0:05:31]} 24. Qxf3 {[%emt 0:00:43]} Rxf3 {[%emt 0:00:29]} 25. Rxe6 {[%emt 0:00:38]} Bd7 {[%emt 0:02:39]} 26. Rxg6 {[%emt 0:03:39]} Bh3 {[%emt 0:00:03]} 27. Be5 {[%emt 0:00:30]} Bxf1 {[%emt 0:00:23]} 28. Bxf1 {[%emt 0:03:01]} Bxf2+ {[%emt 0:01:29]} 29. Kg2 {[%emt 0:00:08]} Rf7 {[%emt 0:01:32]} 30. Bd3 {[%emt 0:00:16]} Be3 {[%emt 0:00:28]} 31. Bd4 {[%emt 0:00:33]} Bg5 {[%emt 0:00:38]} 32. Rd6 {[%emt 0:00:43]} Rd8 {[%emt 0:00:40]} 33. Rxd8+ {[%emt 0:00:24]} Bxd8 {[%emt 0:00:02]} 34. b6 {[%emt 0:00:44]} Bf6 {[%emt 0:00:27]} 35. c4 {[%emt 0:01:09]} 1-0

[Event "4th Sabbiadoro-Master 2018"]
[Site "Lignano Sabbiadoro"]
[Date "2018.08.03"]
[Round "7.5"]
[White "Migliorini, Matteo"]
[Black "Medici, Simone"]
[Result "1-0"]
[ECO "C87"]
[WhiteElo "2130"]
[BlackElo "2286"]
[Annotator "NA"]
[PlyCount "117"]
[EventDate "2018.07.29"]
[EventType "swiss"]
[EventCountry "ITA"]
[SourceTitle "playchess.com"]
[Source "ChessBase"]
[SourceQuality "1"]
[TimeControl "5400+30"]

1. e4 {[%emt 0:00:30]} Nc6 {[%emt 0:00:30]} 2. Nf3 {[%emt 0:01:30]} e5 {[%emt 0:00:30]} 3. Bb5 {[%emt 0:00:00]} a6 {[%emt 0:00:30]} 4. Ba4 {[%emt 0:00:00]} Nf6 {[%emt 0:00:00]} 5. d3 {[%emt 0:00:30]} d6 {[%emt 0:01:00]} 6. c3 {[%emt 0:00:30]} Be7 {[%emt 0:00:30]} 7. O-O {[%emt 0:00:30]} O-O {[%emt 0:00:30]} 8. Re1 {[%emt 0:02:30]} Bg4 {[%emt 0:01:30]} 9. h3 {[%emt 0:00:30]} Bh5 {[%emt 0:02:30]} 10. Nbd2 {[%emt 0:01:30]} h6 {[%emt 0:03:30]} 11. g4 {[%emt 0:04:30]} Bg6 {[%emt 0:03:30]} 12. Nf1 {[%emt 0:00:30]} Nh7 {[%emt 0:02:30]} 13. Ne3 {[%emt 0:10:30]} Bg5 {[%emt 0:05:30]} 14. Kg2 {[%emt 0:04:30]} b5 {[%emt 0:11:30]} 15. Bc2 {[%emt 0:01:30]} Qd7 {[%emt 0:01:30]} 16. Nf5 {[%emt 0:07:30]} Bxf5 {[%emt 0:01:30]} 17. gxf5 {[%emt 0:01:30]} Bf4 {[%emt 0:07:30]} 18. Bxf4 {[%emt 0:11:30]} exf4 {[%emt 0:00:30]} 19. d4 {[%emt 0:00:30]} Rad8 {[%emt 0:06:30]} 20. Nh2 {[%emt 0:07:30]} Qe7 {[%emt 0:06:30]} 21. Rg1 {[%emt 0:05:30]} Qh4 {[%emt 0:11:30]} 22. Nf3 {[%emt 0:08:30]} Qh5 {[%emt 0:00:30]} 23. Ne1 {[%emt 0:01:30]} Qxd1 {[%emt 0:04:30]} 24. Rxd1 {[%emt 0:00:00]} g5 {[%emt 0:00:30]} 25. Nd3 {[%emt 0:03:00]} Rfe8 {[%emt 0:00:30]} 26. Kf3 {[%emt 0:02:30]} Kf8 {[%emt 0:02:30]} 27. Rge1 {[%emt 0:00:30]} Nf6 {[%emt 0:05:30]} 28. e5 {[%emt 0:04:30]} Nd7 {[%emt 0:01:54]} 29. exd6 {[%emt 0:05:24]} cxd6 {[%emt 0:00:14]} 30. h4 {[%emt 0:01:39]} Ne7 {[%emt 0:02:29]} 31. hxg5 {[%emt 0:01:00]} hxg5 {[%emt 0:00:10]} 32. Kg4 {[%emt 0:00:39]} f6 {[%emt 0:03:30]} 33. Re6 {[%emt 0:00:21]} Ng8 {[%emt 0:04:25]} 34. Nb4 {[%emt 0:02:27]} Nb8 {[%emt 0:09:23]} 35. Rde1 {[%emt 0:00:28]} a5 {[%emt 0:01:05]} 36. Nd5 {[%emt 0:00:32]} Nd7 {[%emt 0:00:47]} 37. Nc7 {[%emt 0:01:00]} Rxe6 {[%emt 0:00:15]} 38. Nxe6+ {[%emt 0:00:05]} Ke8 {[%emt 0:00:38]} 39. Nxd8+ {[%emt 0:01:02]} Kxd8 {[%emt 0:00:01]} 40. Kh5 {[%emt 0:00:49]} Nf8 {[%emt 0:00:39]} 41. Bd3 {[%emt 0:00:31]} Ne7 {[%emt 0:00:19]} 42. Bxb5 {[%emt 0:00:27]} Nd7 {[%emt 0:01:02]} 43. Bxd7 {[%emt 0:00:26]} Kxd7 {[%emt 0:00:30]} 44. Kg4 {[%emt 0:01:15]} Ng8 {[%emt 0:00:00]} 45. Re6 {[%emt 0:00:32]} Nh6+ {[%emt 0:00:06]} 46. Kh5 {[%emt 0:00:05]} Nxf5 {[%emt 0:00:11]} 47. Rxf6 {[%emt 0:00:47]} Nh4 {[%emt 0:00:30]} 48. Kxg5 {[%emt 0:00:43]} Nf3+ {[%emt 0:00:30]} 49. Kxf4 {[%emt 0:00:59]} Nd2 {[%emt 0:00:32]} 50. Rf5 {[%emt 0:00:10]} a4 {[%emt 0:00:49]} 51. Ra5 {[%emt 0:00:14]} Nc4 {[%emt 0:00:16]} 52. Rxa4 {[%emt 0:00:00]} Nxb2 {[%emt 0:00:17]} 53. Ra6 {[%emt 0:00:00]} Nd3+ {[%emt 0:00:46]} 54. Ke4 {[%emt 0:00:00]} Nxf2+ {[%emt 0:00:49]} 55. Kf5 {[%emt 0:00:00]} Nd3 {[%emt 0:00:39]} 56. Ra7+ {[%emt 0:00:00]} Kc6 {[%emt 0:00:12]} 57. Ke6 {[%emt 0:00:00]} Nb4 {[%emt 0:00:00]} 58. Ra4 {[%emt 0:00:00]} Nc2 {[%emt 0:00:11]} 59. Ra6+ {[%emt 0:00:00]} 1-0

[Event "4th Sabbiadoro-Master 2018"]
[Site "Lignano Sabbiadoro"]
[Date "2018.08.03"]
[Round "7.6"]
[White "Tiraboschi, Nicolo`"]
[Black "Micottis, Dorian"]
[Result "0-1"]
[ECO "A08"]
[WhiteElo "2102"]
[BlackElo "2279"]
[Annotator "NA"]
[PlyCount "78"]
[EventDate "2018.07.29"]
[EventType "swiss"]
[EventCountry "ITA"]
[SourceTitle "playchess.com"]
[Source "ChessBase"]
[SourceQuality "1"]
[TimeControl "5400+30"]

1. e4 {[%emt 0:03:30]} c5 {[%emt 0:00:30]} 2. Nf3 {[%emt 0:01:30]} e6 {[%emt 0:00:00]} 3. d3 {[%emt 0:00:30]} Nc6 {[%emt 0:01:00]} 4. g3 {[%emt 0:00:00]} Nf6 {[%emt 0:00:30]} 5. Bg2 {[%emt 0:00:00]} d5 {[%emt 0:00:30]} 6. Nbd2 {[%emt 0:00:30]} g6 {[%emt 0:00:30]} 7. O-O {[%emt 0:00:00]} Bg7 {[%emt 0:00:00]} 8. Re1 {[%emt 0:00:00]} O-O {[%emt 0:00:00]} 9. c3 {[%emt 0:00:30]} b6 {[%emt 0:00:30]} 10. Nf1 {[%emt 0:07:30]} Ba6 {[%emt 0:07:30]} 11. e5 {[%emt 0:02:30]} Nd7 {[%emt 0:00:30]} 12. Bf4 {[%emt 0:00:30]} f6 {[%emt 0:15:30]} 13. exf6 {[%emt 0:01:30]} Qxf6 {[%emt 0:00:30]} 14. d4 {[%emt 0:39:30]} Rae8 {[%emt 0:08:30]} 15. Rc1 {[%emt 0:19:30]} cxd4 {[%emt 0:11:30]} 16. cxd4 {[%emt 0:00:45]} Nxd4 {[%emt 0:00:30]} 17. Nxd4 {[%emt 0:06:32]} Qxd4 {[%emt 0:00:30]} 18. Rc7 {[%emt 0:02:27]} Nc5 {[%emt 0:04:30]} 19. Rxa7 {[%emt 0:01:59]} Qxd1 {[%emt 0:11:30]} 20. Rxd1 {[%emt 0:00:10]} Bxb2 {[%emt 0:00:30]} 21. Rb1 {[%emt 0:02:43]} Bxf1 {[%emt 0:03:30]} 22. Rxb2 {[%emt 0:03:12]} Bxg2 {[%emt 0:00:30]} 23. Kxg2 {[%emt 0:00:17]} e5 {[%emt 0:18:03]} 24. Bh6 {[%emt 0:00:40]} Rf7 {[%emt 0:00:00]} 25. Rxf7 {[%emt 0:00:00]} Kxf7 {[%emt 0:00:04]} 26. Rxb6 {[%emt 0:00:06]} d4 {[%emt 0:00:25]} 27. Rc6 {[%emt 0:00:49]} Ne6 {[%emt 0:00:32]} 28. Kf3 {[%emt 0:03:26]} Ra8 {[%emt 0:02:00]} 29. Rc2 {[%emt 0:00:17]} Ke7 {[%emt 0:00:49]} 30. Bd2 {[%emt 0:02:52]} Kd6 {[%emt 0:00:33]} 31. Bb4+ {[%emt 0:00:43]} Kd5 {[%emt 0:00:05]} 32. Ke2 {[%emt 0:00:45]} e4 {[%emt 0:00:10]} 33. Rd2 {[%emt 0:00:25]} d3+ {[%emt 0:04:43]} 34. Kd1 {[%emt 0:00:19]} Kc4 {[%emt 0:00:19]} 35. Bd6 {[%emt 0:00:42]} Ra6 {[%emt 0:01:07]} 36. Be5 {[%emt 0:00:31]} Ra5 {[%emt 0:00:59]} 37. Bf6 {[%emt 0:00:38]} Rf5 {[%emt 0:02:52]} 38. Bh4 {[%emt 0:00:05]} g5 {[%emt 0:00:22]} 39. g4 {[%emt 0:00:07]} Rb5 {[%emt 0:00:02]} 0-1

[Event "4th Sabbiadoro-Master 2018"]
[Site "Lignano Sabbiadoro"]
[Date "2018.08.03"]
[Round "7.7"]
[White "Favilli, Edoardo"]
[Black "Ventura, Salvatore"]
[Result "1-0"]
[ECO "B30"]
[WhiteElo "2116"]
[BlackElo "2185"]
[Annotator "NA"]
[PlyCount "79"]
[EventDate "2018.07.29"]
[EventType "swiss"]
[EventCountry "ITA"]
[SourceTitle "playchess.com"]
[Source "ChessBase"]
[SourceQuality "1"]
[TimeControl "5400+30"]

1. e4 {[%emt 0:05:30]} c5 {[%emt 0:00:30]} 2. Nf3 {[%emt 0:00:00]} Nc6 {[%emt 0:00:00]} 3. Bb5 {[%emt 0:00:00]} Qc7 {[%emt 0:00:00]} 4. O-O {[%emt 0:01:30]} a6 {[%emt 0:00:30]} 5. Bxc6 {[%emt 0:01:30]} dxc6 {[%emt 0:00:30]} 6. h3 {[%emt 0:01:30]} e5 {[%emt 0:00:30]} 7. d3 {[%emt 0:00:30]} Ne7 {[%emt 0:00:30]} 8. Be3 {[%emt 0:01:30]} Ng6 {[%emt 0:00:30]} 9. Nbd2 {[%emt 0:02:30]} f6 {[%emt 0:03:30]} 10. a4 {[%emt 0:03:30]} a5 {[%emt 0:01:30]} 11. Nc4 {[%emt 0:05:30]} Be6 {[%emt 0:01:30]} 12. Nfd2 {[%emt 0:01:30]} b6 {[%emt 0:03:30]} 13. c3 {[%emt 0:02:30]} Be7 {[%emt 0:12:30]} 14. b4 {[%emt 0:08:30]} axb4 {[%emt 0:01:30]} 15. cxb4 {[%emt 0:00:00]} b5 {[%emt 0:04:30]} 16. axb5 {[%emt 0:03:00]} Rxa1 {[%emt 0:00:30]} 17. Qxa1 {[%emt 0:00:00]} cxb5 {[%emt 0:00:30]} 18. Qa6 {[%emt 0:03:00]} Kf7 {[%emt 0:05:30]} 19. Qxb5 {[%emt 0:05:30]} cxb4 {[%emt 0:01:30]} 20. Ra1 {[%emt 0:09:30]} Rb8 {[%emt 0:04:30]} 21. Qa4 {[%emt 0:10:30]} Nf4 {[%emt 0:10:30]} 22. Bxf4 {[%emt 0:06:30]} exf4 {[%emt 0:00:00]} 23. Qc2 {[%emt 0:01:30]} Rc8 {[%emt 0:09:00]} 24. Rc1 {[%emt 0:01:30]} Qc5 {[%emt 0:06:30]} 25. Nb3 {[%emt 0:06:34]} Qg5 {[%emt 0:01:30]} 26. Kf1 {[%emt 0:02:03]} f3 {[%emt 0:00:30]} 27. gxf3 {[%emt 0:00:18]} Bxh3+ {[%emt 0:01:30]} 28. Ke2 {[%emt 0:00:06]} Be6 {[%emt 0:03:30]} 29. Nd4 {[%emt 0:10:14]} Bxc4 {[%emt 0:15:04]} 30. dxc4 {[%emt 0:00:33]} Bc5 {[%emt 0:00:30]} 31. Nb3 {[%emt 0:00:43]} f5 {[%emt 0:00:30]} 32. Rd1 {[%emt 0:00:02]} fxe4 {[%emt 0:01:54]} 33. Rd5 {[%emt 0:00:32]} exf3+ {[%emt 0:03:48]} 34. Kxf3 {[%emt 0:00:21]} Qg6 {[%emt 0:04:12]} 35. Qxg6+ {[%emt 0:00:27]} Kxg6 {[%emt 0:00:08]} 36. Rxc5 {[%emt 0:00:11]} Rf8+ {[%emt 0:00:10]} 37. Kg3 {[%emt 0:01:05]} h5 {[%emt 0:00:16]} 38. f3 {[%emt 0:01:35]} h4+ {[%emt 0:00:12]} 39. Kg4 {[%emt 0:00:10]} h3 {[%emt 0:00:55]} 40. Rg5+ {[%emt 0:00:07]} 1-0